fUSD/lending_fUSD_20250506
["ID","MTS","AMOUNT","RATE_DAILY","PERIOD"]
[360142229,1746568251562,-452.61659452,0.00019898,2]
[360142230,1746568251571,-450.0,0.00019898,2]
[360142231,1746568251581,-450.0,0.00019898,2]
[360142232,1746568251590,-254.51858953,0.00019898,2]
[360142233,1746568251893,-560.07192061,0.00019797,2]
[360142234,1746568251904,-215.48141047,0.00019898,2]
[360142235,1746568251914,-450.0,0.00019898,2]
[360142236,1746568251923,-230.89429748,0.00019898,2]
[360142237,1746568252750,-450.0,0.00019795,2]
[360142238,1746568252760,-450.0,0.00019796,2]
[360142239,1746568252769,-500.0,0.00019796,2]
[360142240,1746568252779,-450.0,0.00019796,2]
[360142241,1746568252788,-450.0,0.00019796,2]
[360142242,1746568252798,-586.61,0.00019797,2]
[360142243,1746568252807,-219.10570252,0.00019898,2]
[360142244,1746568252816,-450.0,0.00019898,2]
[360142245,1746568252826,-450.0,0.00019898,2]
[360142246,1746568252835,-470.0,0.00019898,2]
[360142247,1746568252845,-470.0,0.00019898,2]
[360142248,1746568252855,-490.0,0.00019898,2]
[360142249,1746568252865,-450.0,0.00019898,2]
[360142250,1746568252874,-450.0,0.00019898,2]
[360142251,1746568252883,-470.0,0.00019898,2]
[360142252,1746568252892,-450.0,0.00019898,2]
[360142253,1746568252902,-522.62072946,0.00019898,2]
[360142254,1746568252911,-450.0,0.00019898,2]
[360142255,1746568252922,-520.0,0.00019898,2]
[360142256,1746568252931,-470.0,0.00019898,2]
[360142257,1746568252941,-830.58,0.00019898,2]
[360142258,1746568252950,-450.0,0.00019898,2]
[360142259,1746568252960,-470.0,0.00019898,2]
[360142260,1746568252969,-563.06719549,0.00019898,2]
[360142261,1746568252979,-470.0,0.00019898,2]
[360142262,1746568252988,-470.0,0.00019898,2]
[360142263,1746568252998,-470.0,0.00019898,2]
[360142264,1746568253007,-2000.0,0.00019898,2]
[360142265,1746568253017,-490.0,0.00019898,2]
[360142266,1746568253026,-191.53723641,0.00019898,2]
[360142267,1746568253038,-258.46276359,0.00019898,2]
[360142268,1746568253048,-450.0,0.00019898,2]
[360142269,1746568253057,-160.73989368,0.00019898,2]
[360142270,1746568253067,-450.0,0.00019898,2]
[360142271,1746568253076,-200.928675,0.00019898,2]
[360142272,1746568253085,-200.928675,0.00019898,2]
[360142273,1746568253096,-450.0,0.00019898,2]
[360142274,1746568253109,-200.928675,0.00019898,2]
[360142275,1746568253119,-450.0,0.00019898,2]
[360142276,1746568253129,-200.928675,0.00019898,2]
[360142277,1746568253138,-509.50424123,0.00019898,2]
[360142278,1746568253149,-450.0,0.00019898,2]
[360142279,1746568253160,-500.0,0.00019898,2]
[360142280,1746568253170,-200.928675,0.00019898,2]
[360142281,1746568253181,-450.0,0.00019898,2]
[360142282,1746568253191,-200.928675,0.00019898,2]
[360142283,1746568253200,-200.928675,0.00019898,2]
[360142284,1746568253209,-200.928675,0.00019898,2]
[360142285,1746568253219,-450.0,0.00019898,2]
[360142286,1746568253229,-470.0,0.00019898,2]
[360142287,1746568253239,-470.0,0.00019898,2]
[360142288,1746568253248,-470.0,0.00019898,2]
[360142289,1746568253258,-470.0,0.00019898,2]
[360142290,1746568253268,-450.0,0.00019898,2]
[360142291,1746568253277,-323.68844257,0.00019898,2]
[360142292,1746568253290,-146.31155743,0.00019898,2]
[360142293,1746568253299,-450.0,0.00019898,2]
[360142294,1746568253309,-450.0,0.00019898,2]
[360142295,1746568253318,-450.0,0.00019898,2]
[360142296,1746568253328,-450.0,0.00019898,2]
[360142297,1746568253338,-490.0,0.00019898,2]
[360142298,1746568253348,-470.0,0.00019898,2]
[360142299,1746568253357,-313.54283762,0.00019898,2]
[360142300,1746568253369,-136.45716238,0.00019898,2]
[360142301,1746568253378,-450.0,0.00019898,2]
[360142302,1746568253387,-470.0,0.00019898,2]
[360142303,1746568253395,-470.0,0.00019898,2]
[360142304,1746568253405,-470.0,0.00019898,2]
[360142305,1746568253415,-450.0,0.00019898,2]
[360142306,1746568253425,-450.0,0.00019898,2]
[360142307,1746568253435,-470.0,0.00019898,2]
[360142308,1746568253444,-470.0,0.00019898,2]
[360142309,1746568253453,-151.0,0.00019898,2]
[360142310,1746568253463,-151.0,0.00019898,2]
[360142311,1746568253472,-151.0,0.00019898,2]
[360142312,1746568253482,-120.28892688,0.00019898,2]
[360142313,1746568253500,-470.0,0.00019795,2]
[360142314,1746568253511,-30.71107312,0.00019898,2]
[360142315,1746568253521,-28.26393022,0.00019898,2]
[360142316,1746568358971,336.72,0.00018926,2]
[360142317,1746568359725,336.72,0.00026024,120]
[360142318,1746568359951,336.72,0.0002839,120]
[360142319,1746568463417,362.66,0.000298,31]
[360142320,1746568463471,362.66,0.000298,31]
[360142321,1746568463531,362.66,0.000298,31]
[360142322,1746568463589,362.66,0.000298,31]
[360142323,1746568463651,362.66,0.000298,31]
[360142324,1746568463716,362.66,0.000298,31]
[360142325,1746568463773,362.66,0.000298,31]
[360142326,1746568463838,362.66,0.000298,31]
[360142327,1746568463904,362.66,0.000298,31]
[360142328,1746568463968,362.66,0.000298,31]
[360142329,1746568464078,362.66,0.000298,31]
[360142330,1746568464186,362.66,0.000298,31]
[360142331,1746568464232,362.66,0.000298,31]
[360142332,1746568464515,362.66,0.000298,31]
[360142333,1746568464558,362.66,0.000298,31]
[360142334,1746568464608,362.66,0.000298,31]
[360142335,1746568644728,783.04,0.0001696,2]
[360142336,1746568644974,783.04,0.00019224,2]
[360142337,1746568668943,500.0,0.00029589,30]
[360142338,1746568669218,500.0,0.00029863,35]
[360142339,1746568781736,199.17947,0.000247,34]
[360142340,1746569068619,1000.0,0.00018833,2]
[360142341,1746569075689,301.04,0.000298,31]
[360142342,1746569075756,301.04,0.000298,31]
[360142343,1746569075810,301.04,0.000298,31]
[360142344,1746569075875,301.04,0.000298,31]
[360142345,1746569076081,301.04,0.000298,31]
[360142346,1746569076130,301.04,0.000298,31]
[360142347,1746569076176,301.04,0.000298,31]
[360142348,1746569076216,301.04,0.000298,31]
[360142349,1746569076259,301.04,0.000298,31]
[360142350,1746569076302,301.04,0.000298,31]
[360142351,1746569076346,301.04,0.000298,31]
[360142352,1746569076392,301.04,0.000298,31]
[360142353,1746569076432,301.04,0.000298,31]
[360142354,1746569076491,301.04,0.000298,31]
[360142355,1746569076675,301.04,0.000298,31]
[360142356,1746569076712,301.04,0.000298,31]
[360142357,1746569232573,500.0,0.00029589,30]
[360142358,1746569232810,500.0,0.00029863,35]
[360142361,1746569400544,153.6,0.00018819,2]
[360142362,1746569401208,153.6,0.00025876,120]
[360142363,1746569401444,153.6,0.00028228,120]
[360142366,1746569431760,-207.4,0.00019685,2]
[360142367,1746569431771,-961.44483464,0.00019694,2]
[360142368,1746569431875,-238.55516536,0.00019694,2]
[360142369,1746569431885,-300.0,0.00019694,2]
[360142370,1746569431895,-250.0,0.00019695,2]
[360142371,1746569431904,-3049.22470632,0.00019695,2]
[360142372,1746569431913,-8308.54848724,0.00019695,2]
[360142373,1746569431923,-1870.1783,0.00019695,2]
[360142374,1746569431932,-317.1902,0.00019695,2]
[360142375,1746569431942,-1577.7921,0.00019695,2]
[360142376,1746569431952,-200.0,0.00019696,2]
[360142377,1746569431962,-301.3010171,0.00019696,2]
[360142378,1746569431971,-273.20998382,0.00019696,2]
[360142379,1746569431981,-294.01435266,0.00019696,2]
[360142380,1746569431991,-1861.211,0.00019697,2]
[360142381,1746569432000,-225.0,0.00019698,2]
[360142382,1746569432010,-200.0,0.00019716,2]
[360142383,1746569432019,-523.45807803,0.00019773,2]
[360142384,1746569432029,-164.18743977,0.00019773,2]
[360142385,1746569432038,-500.0,0.00019773,2]
[360142386,1746569432048,-500.0,0.00019773,2]
[360142387,1746569432057,-500.0,0.00019773,2]
[360142388,1746569432066,-5975.76557108,0.00019784,2]
[360142390,1746569432227,-151.0,0.00019784,2]
[360142391,1746569432240,-151.0,0.00019784,2]
[360142392,1746569432250,-155.0,0.00019784,2]
[360142393,1746569432260,-151.0,0.00019784,2]
[360142394,1746569432270,-668.65185757,0.00019784,2]
[360142395,1746569432280,-265.05,0.00019785,2]
[360142396,1746569432290,-204.14576701,0.00019787,2]
[360142397,1746569432299,-850.0,0.00019793,2]
[360142398,1746569432309,-688.9,0.00019794,2]
[360142399,1746569432318,-450.0,0.00019794,2]
[360142400,1746569432328,-450.0,0.00019794,2]
[360142401,1746569432337,-744.44,0.00019794,2]
[360142402,1746569432347,-450.0,0.00019794,2]
[360142403,1746569432358,-450.0,0.00019794,2]
[360142404,1746569432368,-1767.16,0.00019794,2]
[360142405,1746569432377,-450.0,0.00019794,2]
[360142406,1746569432387,-887.05,0.00019794,2]
[360142407,1746569432396,-450.0,0.00019794,2]
[360142408,1746569432408,-450.0,0.00019794,2]
[360142409,1746569432418,-450.0,0.00019794,2]
[360142410,1746569432429,-450.0,0.00019794,2]
[360142411,1746569432438,-702.53,0.00019794,2]
[360142412,1746569432448,-450.0,0.00019794,2]
[360142413,1746569432458,-450.0,0.00019794,2]
[360142414,1746569432467,-450.0,0.00019794,2]
[360142415,1746569432478,-450.0,0.00019794,2]
[360142416,1746569432487,-835.52,0.00019794,2]
[360142417,1746569432497,-450.0,0.00019794,2]
[360142418,1746569432506,-450.0,0.00019794,2]
[360142419,1746569432515,-2631.27,0.00019794,2]
[360142420,1746569432524,-450.0,0.00019794,2]
[360142421,1746569432534,-450.0,0.00019794,2]
[360142422,1746569432543,-478.98,0.00019794,2]
[360142423,1746569432553,-450.0,0.00019794,2]
[360142424,1746569432563,-225.87597404,0.00019794,2]
[360142425,1746569432575,-383.67402596,0.00019794,2]
[360142426,1746569432585,-150.0,0.00019794,2]
[360142427,1746569432595,-450.0,0.00019794,2]
[360142428,1746569432604,-436.06878466,0.00019794,2]
[360142429,1746569432620,-13.93121534,0.00019794,2]
[360142430,1746569432631,-429.14788561,0.00019794,2]
[360142438,1746569437710,-20.85211439,0.00019794,2]
[360142439,1746569437720,-513.49,0.00019794,2]
[360142440,1746569437729,-3935.00033612,0.00019794,2]
[360142441,1746569437768,-70.18828288,0.00019794,2]
[360142442,1746569437778,-437.92224419,0.00019794,2]
[360142443,1746569437789,-32.07775581,0.00019794,2]
[360142444,1746569437798,-245.49327798,0.00019794,2]
[360142445,1746569437826,-254.50672202,0.00019794,2]
[360142446,1746569437835,-252.217496,0.00019794,2]
[360142447,1746569437845,-500.0,0.00019794,2]
[360142448,1746569437854,-180.28094896,0.00019794,2]
[360142449,1746569437868,-500.0,0.00019794,2]
[360142450,1746569437878,-500.0,0.00019794,2]
[360142451,1746569437887,-500.0,0.00019794,2]
[360142452,1746569437896,-500.0,0.00019794,2]
[360142453,1746569437906,-500.0,0.00019794,2]
[360142454,1746569437915,-500.0,0.00019794,2]
[360142455,1746569437925,-500.0,0.00019794,2]
[360142456,1746569437935,-500.0,0.00019794,2]
[360142457,1746569437945,-500.0,0.00019794,2]
[360142458,1746569437954,-500.0,0.00019794,2]
[360142459,1746569437964,-500.0,0.00019794,2]
[360142460,1746569437974,-500.0,0.00019794,2]
[360142461,1746569437983,-500.0,0.00019794,2]
[360142462,1746569437992,-500.0,0.00019794,2]
[360142463,1746569438002,-500.0,0.00019794,2]
[360142464,1746569438011,-500.0,0.00019794,2]
[360142465,1746569438021,-500.0,0.00019794,2]
[360142466,1746569438030,-500.0,0.00019794,2]
[360142467,1746569438039,-500.0,0.00019794,2]
[360142468,1746569438048,-500.0,0.00019794,2]
[360142469,1746569438058,-500.0,0.00019794,2]
[360142470,1746569438069,-500.0,0.00019794,2]
[360142471,1746569438080,-500.0,0.00019794,2]
[360142472,1746569438091,-500.0,0.00019794,2]
[360142473,1746569438101,-500.0,0.00019794,2]
[360142474,1746569438112,-500.0,0.00019794,2]
[360142475,1746569438122,-500.0,0.00019794,2]
[360142476,1746569438133,-500.0,0.00019794,2]
[360142477,1746569438143,-500.0,0.00019794,2]
[360142478,1746569438153,-500.0,0.00019794,2]
[360142479,1746569438163,-500.0,0.00019794,2]
[360142480,1746569438173,-500.0,0.00019794,2]
[360142481,1746569438183,-500.0,0.00019794,2]
[360142482,1746569438193,-500.0,0.00019794,2]
[360142483,1746569438202,-500.0,0.00019794,2]
[360142484,1746569438212,-500.0,0.00019794,2]
[360142485,1746569438222,-500.0,0.00019794,2]
[360142486,1746569438232,-310.77609718,0.00019794,2]
[360142487,1746569438245,-189.22390282,0.00019794,2]
[360142488,1746569438254,-286.15609718,0.00019794,2]
[360142489,1746569438270,-213.84390282,0.00019794,2]
[360142490,1746569438280,-111.36531762,0.00019794,2]
[360142495,1746569439978,-1049.4999999,0.00019794,2]
[360142496,1746569440039,-323.53325692,0.00019794,2]
[360142497,1746569440212,-706.69674318,0.00019794,2]
[360142498,1746569440222,-450.0,0.00019794,2]
[360142499,1746569440231,-388.63468238,0.00019794,2]
[360142500,1746569440241,-500.0,0.00019794,2]
[360142501,1746569440250,-500.0,0.00019794,2]
[360142502,1746569440260,-500.0,0.00019794,2]
[360142503,1746569440269,-500.0,0.00019794,2]
[360142504,1746569440279,-500.0,0.00019794,2]
[360142505,1746569440288,-500.0,0.00019794,2]
[360142506,1746569440298,-500.0,0.00019794,2]
[360142507,1746569440307,-500.0,0.00019794,2]
[360142508,1746569440317,-304.27131148,0.00019794,2]
[360142509,1746569440327,-500.0,0.00019794,2]
[360142510,1746569440337,-500.0,0.00019794,2]
[360142511,1746569440347,-500.0,0.00019794,2]
[360142512,1746569440357,-500.0,0.00019794,2]
[360142513,1746569440369,-500.0,0.00019794,2]
[360142514,1746569440379,-500.0,0.00019794,2]
[360142515,1746569440389,-500.0,0.00019794,2]
[360142516,1746569440399,-500.0,0.00019794,2]
[360142517,1746569440409,-500.0,0.00019794,2]
[360142518,1746569440418,-500.0,0.00019794,2]
[360142519,1746569440427,-500.0,0.00019794,2]
[360142520,1746569440436,-500.0,0.00019794,2]
[360142521,1746569440446,-500.0,0.00019794,2]
[360142522,1746569440455,-500.0,0.00019794,2]
[360142523,1746569440465,-500.0,0.00019794,2]
[360142524,1746569440474,-500.0,0.00019794,2]
[360142525,1746569440484,-500.0,0.00019794,2]
[360142526,1746569440495,-500.0,0.00019794,2]
[360142527,1746569440504,-500.0,0.00019794,2]
[360142528,1746569440513,-500.0,0.00019794,2]
[360142529,1746569440523,-500.0,0.00019794,2]
[360142530,1746569440532,-500.0,0.00019794,2]
[360142531,1746569440541,-500.0,0.00019794,2]
[360142532,1746569440550,-400.0,0.00019794,2]
[360142533,1746569440559,-500.0,0.00019794,2]
[360142534,1746569440568,-154.9496455,0.00019795,2]
[360142535,1746569440578,-450.0,0.00019795,2]
[360142536,1746569440588,-320.0,0.00019795,2]
[360142537,1746569440597,-633.92,0.00019795,2]
[360142538,1746569440606,-450.0,0.00019795,2]
[360142539,1746569440617,-450.0,0.00019795,2]
[360142540,1746569440627,-450.0,0.00019795,2]
[360142541,1746569440636,-450.0,0.00019795,2]
[360142542,1746569440645,-450.0,0.00019795,2]
[360142543,1746569440654,-520.0,0.00019795,2]
[360142544,1746569440663,-512.01178802,0.00019795,2]
[360142545,1746569440673,-450.0,0.00019795,2]
[360142546,1746569440683,-450.0,0.00019795,2]
[360142547,1746569440692,-450.0,0.00019795,2]
[360142548,1746569440702,-598.24,0.00019795,2]
[360142549,1746569440711,-450.0,0.00019795,2]
[360142550,1746569440720,-450.0,0.00019795,2]
[360142551,1746569440729,-450.0,0.00019795,2]
[360142552,1746569440738,-518.82,0.00019795,2]
[360142553,1746569440751,-482.28135973,0.00019795,2]
[360142554,1746569440760,-450.0,0.00019795,2]
[360142555,1746569440769,-535.9037044,0.00019795,2]
[360142556,1746569440778,-450.0,0.00019795,2]
[360142557,1746569440788,-450.0,0.00019795,2]
[360142558,1746569440797,-450.0,0.00019795,2]
[360142559,1746569440806,-768.76,0.00019795,2]
[360142560,1746569440815,-490.0,0.00019795,2]
[360142561,1746569440825,-494.34596469,0.00019795,2]
[360142562,1746569440834,-450.0,0.00019795,2]
[360142563,1746569440844,-535.42,0.00019795,2]
[360142564,1746569440854,-450.0,0.00019795,2]
[360142565,1746569440865,-490.0,0.00019795,2]
[360142566,1746569440875,-450.0,0.00019795,2]
[360142567,1746569440884,-450.0,0.00019795,2]
[360142568,1746569440893,-490.0,0.00019795,2]
[360142569,1746569440902,-450.0,0.00019795,2]
[360142570,1746569440912,-450.0,0.00019795,2]
[360142571,1746569440921,-786.21,0.00019795,2]
[360142572,1746569440931,-450.0,0.00019795,2]
[360142573,1746569440941,-450.0,0.00019795,2]
[360142574,1746569440950,-450.0,0.00019795,2]
[360142575,1746569440959,-450.0,0.00019795,2]
[360142576,1746569440968,-450.0,0.00019795,2]
[360142577,1746569440977,-450.0,0.00019795,2]
[360142578,1746569440987,-450.0,0.00019795,2]
[360142579,1746569440997,-450.0,0.00019795,2]
[360142580,1746569441006,-450.0,0.00019795,2]
[360142581,1746569441015,-450.0,0.00019795,2]
[360142582,1746569441025,-450.0,0.00019795,2]
[360142583,1746569441034,-177.8999941,0.00019795,2]
[360142584,1746569441043,-498.43,0.00019795,2]
[360142585,1746569441053,-795.97,0.00019795,2]
[360142586,1746569441062,-450.0,0.00019795,2]
[360142587,1746569441071,-2000.0,0.00019795,2]
[360142588,1746569441080,-490.0,0.00019795,2]
[360142589,1746569441090,-454.82,0.00019795,2]
[360142590,1746569441099,-450.0,0.00019795,2]
[360142591,1746569441108,-450.0,0.00019795,2]
[360142592,1746569441121,-222.33032389,0.00019795,2]
[360142593,1746569441130,-450.0,0.00019795,2]
[360142594,1746569441140,-450.0,0.00019795,2]
[360142595,1746569441149,-484.16732217,0.00019795,2]
[360142596,1746569441159,-450.0,0.00019795,2]
[360142597,1746569441169,-560.54,0.00019795,2]
[360142598,1746569441178,-450.0,0.00019795,2]
[360142599,1746569441188,-450.0,0.00019795,2]
[360142600,1746569441197,-600.47,0.00019795,2]
[360142601,1746569441206,-450.0,0.00019795,2]
[360142602,1746569441215,-450.0,0.00019795,2]
[360142603,1746569441225,-450.0,0.00019795,2]
[360142604,1746569441234,-231.81260813,0.00019795,2]
[360142605,1746569441243,-450.0,0.00019795,2]
[360142606,1746569441252,-450.0,0.00019795,2]
[360142607,1746569441261,-490.0,0.00019795,2]
[360142608,1746569441270,-450.0,0.00019795,2]
[360142609,1746569441279,-211.21245406,0.00019795,2]
[360142610,1746569441288,-450.0,0.00019795,2]
[360142611,1746569441298,-152.19215717,0.00019795,2]
[360142612,1746569441307,-470.0,0.00019795,2]
[360142613,1746569441317,-450.0,0.00019795,2]
[360142614,1746569441327,-450.0,0.00019795,2]
[360142615,1746569441336,-450.0,0.00019795,2]
[360142616,1746569441345,-1100.43,0.00019795,2]
[360142617,1746569441355,-450.0,0.00019795,2]
[360142618,1746569441366,-450.0,0.00019795,2]
[360142619,1746569441375,-450.0,0.00019795,2]
[360142620,1746569441385,-450.0,0.00019795,2]
[360142621,1746569441395,-450.0,0.00019795,2]
[360142622,1746569441405,-1164.19,0.00019795,2]
[360142623,1746569441414,-450.0,0.00019795,2]
[360142624,1746569441424,-450.0,0.00019795,2]
[360142625,1746569441433,-470.0,0.00019795,2]
[360142626,1746569441443,-181.95620607,0.00019795,2]
[360142627,1746569441452,-1089.48,0.00019795,2]
[360142628,1746569441461,-1376.98,0.00019795,2]
[360142629,1746569441470,-450.0,0.00019795,2]
[360142630,1746569441479,-1274.59,0.00019795,2]
[360142631,1746569441488,-450.0,0.00019795,2]
[360142632,1746569441497,-450.0,0.00019795,2]
[360142633,1746569441507,-450.0,0.00019795,2]
[360142634,1746569441516,-450.0,0.00019795,2]
[360142635,1746569441525,-450.0,0.00019795,2]
[360142636,1746569441535,-450.0,0.00019795,2]
[360142637,1746569441544,-242.00030949,0.00019795,2]
[360142638,1746569441553,-450.0,0.00019795,2]
[360142639,1746569441562,-450.0,0.00019795,2]
[360142640,1746569441572,-490.0,0.00019795,2]
[360142641,1746569441581,-450.0,0.00019795,2]
[360142642,1746569441591,-498.12,0.00019795,2]
[360142643,1746569441600,-450.0,0.00019795,2]
[360142644,1746569441610,-450.0,0.00019795,2]
[360142645,1746569441621,-450.0,0.00019795,2]
[360142646,1746569441630,-450.0,0.00019795,2]
[360142647,1746569441639,-1415.91,0.00019795,2]
[360142648,1746569441649,-995.73,0.00019795,2]
[360142649,1746569441658,-450.0,0.00019795,2]
[360142650,1746569441668,-157.41068815,0.00019795,2]
[360142651,1746569441677,-450.0,0.00019795,2]
[360142652,1746569441687,-979.24,0.00019795,2]
[360142653,1746569441697,-450.0,0.00019795,2]
[360142654,1746569441707,-1284.89,0.00019795,2]
[360142655,1746569441716,-450.0,0.00019795,2]
[360142656,1746569441725,-450.0,0.00019795,2]
[360142657,1746569441735,-450.0,0.00019795,2]
[360142658,1746569441744,-474.97665069,0.00019795,2]
[360142659,1746569441758,-500.0,0.00019795,2]
[360142660,1746569441768,-450.0,0.00019795,2]
[360142661,1746569441778,-450.0,0.00019795,2]
[360142662,1746569441787,-450.0,0.00019795,2]
[360142663,1746569441797,-548.43285154,0.00019795,2]
[360142664,1746569441807,-450.0,0.00019795,2]
[360142665,1746569441816,-450.0,0.00019795,2]
[360142666,1746569441825,-2372.37,0.00019795,2]
[360142667,1746569441836,-450.0,0.00019795,2]
[360142668,1746569441846,-1854.69,0.00019795,2]
[360142669,1746569441855,-450.0,0.00019795,2]
[360142670,1746569441866,-1107.33,0.00019795,2]
[360142671,1746569441876,-450.0,0.00019795,2]
[360142672,1746569441885,-477.21,0.00019795,2]
[360142673,1746569441895,-162.96537,0.00019795,2]
[360142674,1746569441905,-450.0,0.00019795,2]
[360142675,1746569441915,-450.0,0.00019795,2]
[360142676,1746569441924,-764.36,0.00019795,2]
[360142677,1746569441935,-450.0,0.00019795,2]
[360142678,1746569441944,-450.0,0.00019795,2]
[360142679,1746569441954,-1326.6,0.00019795,2]
[360142680,1746569441963,-450.0,0.00019795,2]
[360142681,1746569441973,-1541.772246,0.00019795,2]
[360142682,1746569441982,-1541.772246,0.00019795,2]
[360142683,1746569441991,-450.0,0.00019795,2]
[360142684,1746569442001,-450.0,0.00019795,2]
[360142685,1746569442011,-513.45,0.00019795,2]
[360142686,1746569442020,-2701.08,0.00019795,2]
[360142687,1746569442029,-450.0,0.00019795,2]
[360142688,1746569442038,-1269.77,0.00019795,2]
[360142689,1746569442048,-1269.77,0.00019795,2]
[360142690,1746569442057,-450.0,0.00019795,2]
[360142691,1746569442066,-450.0,0.00019795,2]
[360142692,1746569442076,-2118.4,0.00019795,2]
[360142693,1746569442085,-767.93,0.00019795,2]
[360142694,1746569442094,-450.0,0.00019795,2]
[360142695,1746569442107,-18276.723512,0.00019795,2]
[360142696,1746569442119,-18276.723512,0.00019795,2]
[360142697,1746569442129,-450.0,0.00019795,2]
[360142698,1746569442138,-450.0,0.00019795,2]
[360142699,1746569442148,-2839.57,0.00019795,2]
[360142700,1746569442158,-450.0,0.00019795,2]
[360142701,1746569442168,-450.0,0.00019795,2]
[360142702,1746569442178,-450.0,0.00019795,2]
[360142703,1746569442187,-542.16,0.00019795,2]
[360142704,1746569442197,-450.0,0.00019795,2]
[360142705,1746569442207,-667.43,0.00019795,2]
[360142706,1746569442216,-450.0,0.00019795,2]
[360142707,1746569442226,-450.0,0.00019795,2]
[360142708,1746569442236,-2113.94,0.00019795,2]
[360142709,1746569442245,-390.10366394,0.00019795,2]
[360142710,1746569442254,-1494.3,0.00019795,2]
[360142711,1746569442264,-450.0,0.00019795,2]
[360142712,1746569442273,-1125.49,0.00019795,2]
[360142713,1746569442283,-465.1,0.00019795,2]
[360142714,1746569442292,-1125.49,0.00019795,2]
[360142715,1746569442301,-1475.89,0.00019795,2]
[360142716,1746569442311,-450.0,0.00019795,2]
[360142717,1746569442320,-2910.5,0.00019795,2]
[360142718,1746569442329,-2910.5,0.00019795,2]
[360142719,1746569442339,-1384.43,0.00019795,2]
[360142720,1746569442348,-1368.37,0.00019795,2]
[360142721,1746569442358,-450.0,0.00019795,2]
[360142722,1746569442369,-1203.59,0.00019795,2]
[360142723,1746569442378,-450.0,0.00019795,2]
[360142724,1746569442388,-470.0,0.00019795,2]
[360142725,1746569442398,-631.58,0.00019795,2]
[360142726,1746569442407,-1838.15,0.00019795,2]
[360142731,1746569442547,-1838.15,0.00019795,2]
[360142733,1746569442557,-450.0,0.00019795,2]
[360142735,1746569442567,-450.0,0.00019795,2]
[360142736,1746569442577,-688.9,0.00019795,2]
[360142738,1746569442587,-1907.85,0.00019795,2]
[360142741,1746569442596,-450.0,0.00019795,2]
[360142743,1746569442605,-450.0,0.00019795,2]
[360142745,1746569442617,-450.0,0.00019795,2]
[360142747,1746569442627,-528.35941913,0.00019795,2]
[360142749,1746569442636,-450.0,0.00019795,2]
[360142753,1746569442647,-450.19307129,0.00019795,2]
[360142754,1746569442656,-450.0,0.00019795,2]
[360142755,1746569442666,-929.63,0.00019795,2]
[360142756,1746569442676,-744.44,0.00019795,2]
[360142757,1746569442685,-1136.31,0.00019795,2]
[360142758,1746569442695,-1136.31,0.00019795,2]
[360142759,1746569442705,-450.0,0.00019795,2]
[360142760,1746569442714,-494.13,0.00019795,2]